[Event "XIX Najdorf Memorial 2019"]
[Site "Warsaw"]
[Date "2019.07.13"]
[Round "8.10"]
[White "Menezes, Christoph"]
[Black "Yuffa, Daniil"]
[Result "1/2-1/2"]
[ECO "E94"]
[WhiteElo "2413"]
[BlackElo "2582"]
[Annotator "ChessBase"]
[PlyCount "87"]
[EventDate "2019.07.06"]
[EventType "swiss"]
[EventCountry "POL"]
[SourceTitle "playchess.com"]
[Source "ChessBase"]
[SourceQuality "1"]
[TimeControl "40/5400+30:1800+30"]

1. Nf3 {[%emt 0:00:00]} d6 {[%emt 0:00:13]} 2. d4 {[%emt 0:00:02]} Nf6 {[%emt 0:00:06]} 3. c4 {[%emt 0:00:19]} g6 {[%emt 0:00:06]} 4. Nc3 {[%emt 0:00:13]} Bg7 {[%emt 0:00:04]} 5. e4 {[%emt 0:00:17]} O-O {[%emt 0:00:05]} 6. Be2 {[%emt 0:00:17]} e5 {[%emt 0:00:05]} 7. O-O {[%emt 0:00:15]} Na6 {[%emt 0:00:28]} 8. Be3 {[%emt 0:00:35]} c6 {[%emt 0:00:19]} 9. Qc2 {[%emt 0:00:49]} Ng4 {[%emt 0:05:05]} 10. Bg5 {[%emt 0:00:13]} Qe8 {[%emt 0:00:06]} 11. dxe5 {[%emt 0:03:53]} dxe5 {[%emt 0:01:59]} 12. h3 {[%emt 0:08:22]} f6 {[%emt 0:08:42]} 13. Bd2 {[%emt 0:08:35]} Nh6 {[%emt 0:00:08]} 14. a3 {[%emt 0:02:02]} Nc5 {[%emt 0:03:08]} 15. b4 {[%emt 0:04:11]} Ne6 {[%emt 0:00:33]} 16. c5 {[%emt 0:00:33]} Nf7 {[%emt 0:09:45]} 17. Be3 {[%emt 0:10:44]} Nf4 {[%emt 0:21:46]} 18. Bc4 {[%emt 0:04:16]} Be6 {[%emt 0:00:05]} 19. Ne2 {[%emt 0:05:55]} Bxc4 {[%emt 0:12:35]} 20. Qxc4 {[%emt 0:00:09]} Qe6 {[%emt 0:00:10]} 21. Qc2 {[%emt 0:04:26]} Nxe2+ {[%emt 0:02:55]} 22. Qxe2 {[%emt 0:00:04]} f5 {[%emt 0:00:04]} 23. Rfd1 {[%emt 0:05:04]} a5 {[%emt 0:02:45]} 24. b5 {[%emt 0:05:09]} Bf6 {[%emt 0:05:18]} 25. Rab1 {[%emt 0:06:01]} Rfd8 {[%emt 0:01:12]} 26. Rxd8+ {[%emt 0:03:08]} Rxd8 {[%emt 0:00:07]} 27. Qc2 {[%emt 0:00:20]} Be7 {[%emt 0:04:24]} 28. bxc6 bxc6 {[%emt 0:00:02]} 29. Bd2 {[%emt 0:08:05]} fxe4 {[%emt 0:03:36]} 30. Qxe4 {[%emt 0:00:28]} Qd5 {[%emt 0:00:30]} 31. Qxd5 Rxd5 {[%emt 0:00:04]} 32. Bxa5 {[%emt 0:05:39]} Bxc5 {[%emt 0:00:04]} 33. Bb4 {[%emt 0:01:49]} Ba7 {[%emt 0:02:15]} 34. Nd2 {[%emt 0:02:02]} Nd6 {[%emt 0:05:05]} 35. Bxd6 {[%emt 0:06:58]} Rxd2 {[%emt 0:01:27]} 36. Bxe5 {[%emt 0:00:11]} Rxf2 {[%emt 0:00:35]} 37. Kh1 {[%emt 0:00:24]} Re2 {[%emt 0:01:34]} 38. Bh2 {[%emt 0:02:27]} Ra2 {[%emt 0:06:15]} 39. Bd6 {[%emt 0:00:24]} h5 {[%emt 0:04:25]} 40. Rc1 {[%emt 0:00:00]} h4 {[%emt 0:00:00]} 41. Kh2 {[%emt 0:13:42]} c5 {[%emt 0:08:33]} 42. Bxc5 {[%emt 0:00:26]} Bxc5 {[%emt 0:00:05]} 43. Rxc5 {[%emt 0:00:03]} Rxa3 {[%emt 0:00:03]} 44. Rc4 {[%emt 0:00:19]} 1/2-1/2

[Event "XIX Najdorf Memorial 2019"]
[Site "Warsaw"]
[Date "2019.07.13"]
[Round "8.10"]
[White "Zochowski, Kacper"]
[Black "Goluch, Piotr"]
[Result "0-1"]
[ECO "A14"]
[WhiteElo "2251"]
[BlackElo "2386"]
[Annotator "NA"]
[PlyCount "76"]
[EventDate "2019.07.06"]
[EventType "swiss"]
[EventCountry "POL"]
[SourceTitle "playchess.com"]
[Source "ChessBase"]
[SourceQuality "1"]
[TimeControl "40/5400+30:1800+30"]

1. Nf3 {[%emt 0:08:28]} d5 {[%emt 0:00:00]} 2. c4 {[%emt 0:00:33]} e6 {[%emt 0:00:00]} 3. g3 {[%emt 0:00:18]} Nf6 {[%emt 0:00:00]} 4. Bg2 {[%emt 0:00:13]} Be7 {[%emt 0:00:00]} 5. O-O {[%emt 0:00:20]} O-O {[%emt 0:00:00]} 6. b3 {[%emt 0:00:50]} c5 {[%emt 0:00:00]} 7. Bb2 {[%emt 0:01:22]} d4 {[%emt 0:00:00]} 8. b4 {[%emt 0:02:48]} a5 {[%emt 0:00:33]} 9. bxc5 {[%emt 0:00:57]} Nc6 {[%emt 0:00:01]} 10. d3 {[%emt 0:01:17]} e5 {[%emt 0:00:07]} 11. Na3 {[%emt 0:02:23]} Bxc5 {[%emt 0:00:08]} 12. Nb5 {[%emt 0:03:41]} Qe7 {[%emt 0:00:41]} 13. Qc1 {[%emt 0:05:02]} Bg4 {[%emt 0:02:32]} 14. Re1 {[%emt 0:08:06]} Bb4 {[%emt 0:21:36]} 15. Nd2 {[%emt 0:09:25]} Rfd8 {[%emt 0:08:05]} 16. a3 {[%emt 0:02:16]} Bc5 {[%emt 0:00:05]} 17. Nb3 {[%emt 0:00:42]} Bb6 {[%emt 0:03:55]} 18. a4 {[%emt 0:06:22]} Nd7 {[%emt 0:02:00]} 19. Ba3 {[%emt 0:16:29]} Nc5 {[%emt 0:02:53]} 20. Rb1 {[%emt 0:00:58]} Nb4 {[%emt 0:00:38]} 21. Nxc5 {[%emt 0:13:22]} Bxc5 {[%emt 0:00:05]} 22. f4 {[%emt 0:03:51]} e4 {[%emt 0:00:01]} 23. Bxe4 {[%emt 0:02:14]} f5 {[%emt 0:02:22]} 24. Bf3 {[%emt 0:02:02]} h5 {[%emt 0:00:31]} 25. Kg2 {[%emt 0:02:02]} Ra6 {[%emt 0:05:46]} 26. h3 {[%emt 0:01:04]} Bxf3+ {[%emt 0:00:06]} 27. exf3 {[%emt 0:00:09]} Re6 {[%emt 0:00:03]} 28. Rxe6 {[%emt 0:01:33]} Qxe6 {[%emt 0:00:04]} 29. Qd2 {[%emt 0:01:47]} Re8 {[%emt 0:03:00]} 30. Bxb4 {[%emt 0:00:14]} axb4 {[%emt 0:00:29]} 31. Kf2 {[%emt 0:01:24]} h4 {[%emt 0:00:32]} 32. g4 {[%emt 0:00:07]} Qc6 {[%emt 0:01:14]} 33. Re1 {[%emt 0:01:27]} Re3 34. Qd1 fxg4 {[%emt 0:01:37]} 35. hxg4 {[%emt 0:00:41]} Qe8 {[%emt 0:00:40]} 36. Rh1 {[%emt 0:00:07]} b3 {[%emt 0:10:14]} 37. Rxh4 {[%emt 0:01:30]} Re1 {[%emt 0:00:04]} 38. Qd2 {[%emt 0:01:50]} Bb4 0-1

[Event "XIX Najdorf Memorial 2019"]
[Site "Warsaw"]
[Date "2019.07.13"]
[Round "8.11"]
[White "Shyam, Sundar M."]
[Black "Roseneck, Jonas"]
[Result "1-0"]
[ECO "B90"]
[WhiteElo "2520"]
[BlackElo "2398"]
[Annotator "ChessBase"]
[PlyCount "95"]
[EventDate "2019.07.06"]
[EventType "swiss"]
[EventCountry "POL"]
[SourceTitle "playchess.com"]
[Source "ChessBase"]
[SourceQuality "1"]
[TimeControl "40/5400+30:1800+30"]

1. e4 {[%emt 0:00:00]} c5 {[%emt 0:00:00]} 2. Nf3 {[%emt 0:00:00]} d6 {[%emt 0:00:00]} 3. d4 {[%emt 0:00:00]} cxd4 {[%emt 0:00:00]} 4. Nxd4 {[%emt 0:00:02]} Nf6 {[%emt 0:00:00]} 5. Nc3 {[%emt 0:00:06]} a6 {[%emt 0:00:00]} 6. Bd3 {[%emt 0:00:04]} Nbd7 {[%emt 0:01:18]} 7. O-O {[%emt 0:01:02]} g6 {[%emt 0:00:04]} 8. Re1 {[%emt 0:04:33]} Bg7 {[%emt 0:00:20]} 9. h3 {[%emt 0:00:20]} O-O {[%emt 0:07:00]} 10. Bf1 {[%emt 0:02:27]} Nc5 {[%emt 0:09:27]} 11. a4 {[%emt 0:02:31]} b6 {[%emt 0:04:30]} 12. Nc6 {[%emt 0:22:04]} Qc7 {[%emt 0:04:22]} 13. Nd5 {[%emt 0:00:07]} Nxd5 {[%emt 0:00:06]} 14. exd5 {[%emt 0:00:03]} e5 {[%emt 0:05:33]} 15. b4 {[%emt 0:03:01]} Nb7 {[%emt 0:10:37]} 16. Be3 {[%emt 0:21:42]} Nd8 {[%emt 0:05:55]} 17. a5 {[%emt 0:16:55]} bxa5 {[%emt 0:10:51]} 18. Nxa5 {[%emt 0:01:25]} f5 {[%emt 0:04:17]} 19. c4 {[%emt 0:00:05]} f4 {[%emt 0:06:41]} 20. Bd2 {[%emt 0:00:02]} Nf7 {[%emt 0:00:58]} 21. c5 {[%emt 0:00:07]} dxc5 {[%emt 0:02:24]} 22. bxc5 {[%emt 0:04:20]} Qxc5 {[%emt 0:03:04]} 23. Qb3 {[%emt 0:00:24]} Bf5 {[%emt 0:10:14]} 24. Bb4 {[%emt 0:03:15]} Qa7 {[%emt 0:00:04]} 25. Bxf8 Rxf8 {[%emt 0:01:40]} 26. Nc6 {[%emt 0:00:57]} Qd7 {[%emt 0:00:29]} 27. Rxa6 {[%emt 0:00:55]} e4 {[%emt 0:00:12]} 28. Ra7 {[%emt 0:01:05]} Qd6 {[%emt 0:00:00]} 29. Qa3 {[%emt 0:04:27]} e3 {[%emt 0:01:23]} 30. fxe3 {[%emt 0:03:19]} fxe3 {[%emt 0:00:01]} 31. Qxd6 {[%emt 0:00:55]} Nxd6 {[%emt 0:00:01]} 32. Rxe3 {[%emt 0:00:24]} Be4 {[%emt 0:00:18]} 33. Rd7 {[%emt 0:01:30]} Bh6 {[%emt 0:00:09]} 34. Re1 {[%emt 0:05:05]} Bd2 {[%emt 0:00:10]} 35. Re2 {[%emt 0:00:41]} Bf4 {[%emt 0:00:02]} 36. Rxd6 {[%emt 0:02:38]} Bxd6 {[%emt 0:00:01]} 37. Rxe4 {[%emt 0:00:01]} Bc5+ {[%emt 0:00:00]} 38. Nd4 {[%emt 0:00:02]} Rf5 {[%emt 0:03:27]} 39. d6 {[%emt 0:01:32]} Kg7 {[%emt 0:00:32]} 40. Bc4 {[%emt 0:00:00]} Re5 {[%emt 0:00:00]} 41. d7 {[%emt 0:02:35]} Rxe4 {[%emt 0:02:33]} 42. d8=Q {[%emt 0:03:56]} Bxd4+ {[%emt 0:00:08]} 43. Kf1 {[%emt 0:00:03]} Bf6 {[%emt 0:00:04]} 44. Qg8+ {[%emt 0:00:28]} Kh6 {[%emt 0:00:02]} 45. g3 {[%emt 0:00:09]} Re7 {[%emt 0:00:27]} 46. Qf8+ {[%emt 0:00:09]} Kg5 {[%emt 0:00:45]} 47. h4+ {[%emt 0:00:21]} Kf5 {[%emt 0:00:02]} 48. g4+ {[%emt 0:00:22]} 1-0

[Event "XIX Najdorf Memorial 2019"]
[Site "Warsaw"]
[Date "2019.07.13"]
[Round "8.11"]
[White "Tomaszewski, Kacper"]
[Black "Rakshitta Ravi"]
[Result "1-0"]
[ECO "E70"]
[WhiteElo "2346"]
[BlackElo "2112"]
[Annotator "ChessBase"]
[PlyCount "149"]
[EventDate "2019.07.06"]
[EventType "swiss"]
[EventCountry "POL"]
[SourceTitle "playchess.com"]
[Source "ChessBase"]
[SourceQuality "1"]
[TimeControl "40/5400+30:1800+30"]

1. d4 {[%emt 0:00:00]} Nf6 {[%emt 0:00:00]} 2. c4 {[%emt 0:00:00]} g6 {[%emt 0:00:00]} 3. Nc3 {[%emt 0:00:00]} Bg7 {[%emt 0:00:06]} 4. e4 {[%emt 0:00:02]} d6 {[%emt 0:00:06]} 5. Nge2 {[%emt 0:00:05]} O-O {[%emt 0:00:31]} 6. Ng3 {[%emt 0:00:05]} e5 {[%emt 0:00:46]} 7. d5 {[%emt 0:00:08]} a5 {[%emt 0:00:18]} 8. Be2 {[%emt 0:00:19]} Na6 {[%emt 0:01:38]} 9. h4 {[%emt 0:00:52]} c6 {[%emt 0:06:55]} 10. h5 {[%emt 0:02:35]} cxd5 {[%emt 0:00:58]} 11. cxd5 {[%emt 0:00:51]} Nc5 {[%emt 0:01:55]} 12. hxg6 {[%emt 0:03:19]} fxg6 {[%emt 0:00:18]} 13. Be3 {[%emt 0:03:34]} Bd7 {[%emt 0:04:28]} 14. f3 {[%emt 0:00:49]} a4 {[%emt 0:05:28]} 15. O-O {[%emt 0:03:14]} h5 {[%emt 0:04:24]} 16. Nh1 {[%emt 0:02:28]} h4 {[%emt 0:02:35]} 17. Bg5 {[%emt 0:01:53]} Qb6 {[%emt 0:01:19]} 18. Nf2 {[%emt 0:00:15]} Nh5 {[%emt 0:03:37]} 19. Bxh4 {[%emt 0:04:35]} Bh6 {[%emt 0:00:24]} 20. Rb1 {[%emt 0:05:39]} g5 {[%emt 0:02:56]} 21. g4 {[%emt 0:00:13]} gxh4 {[%emt 0:05:04]} 22. gxh5 {[%emt 0:01:02]} Kh8 {[%emt 0:06:10]} 23. Kh1 {[%emt 0:00:18]} Bf4 {[%emt 0:08:51]} 24. Qc2 {[%emt 0:03:39]} Bg3 {[%emt 0:02:45]} 25. Qd2 {[%emt 0:10:24]} Rf4 {[%emt 0:01:22]} 26. Bd1 {[%emt 0:01:45]} Rf6 {[%emt 0:05:41]} 27. Qg5 {[%emt 0:08:50]} Raf8 {[%emt 0:00:58]} 28. Be2 {[%emt 0:01:02]} Qd8 {[%emt 0:15:42]} 29. Ng4 {[%emt 0:02:51]} Bxg4 {[%emt 0:00:07]} 30. Qxg4 {[%emt 0:00:20]} Rg8 {[%emt 0:02:19]} 31. Qh3 {[%emt 0:00:21]} Nd7 {[%emt 0:01:51]} 32. Bb5 {[%emt 0:04:54]} Nf8 {[%emt 0:01:53]} 33. Bxa4 {[%emt 0:01:04]} Nh7 {[%emt 0:01:54]} 34. Ne2 {[%emt 0:10:17]} Ng5 {[%emt 0:01:02]} 35. Qg2 {[%emt 0:01:47]} Qf8 {[%emt 0:03:27]} 36. Ng1 {[%emt 0:00:17]} Bf4 {[%emt 0:02:38]} 37. Qe2 {[%emt 0:00:48]} h3 {[%emt 0:00:57]} 38. Bd7 {[%emt 0:00:53]} Qg7 {[%emt 0:06:48]} 39. Bg4 {[%emt 0:00:38]} Rh6 {[%emt 0:00:35]} 40. Qc2 {[%emt 0:00:00]} h2 {[%emt 0:00:00]} 41. Nh3 {[%emt 0:06:12]} Nxh3 {[%emt 0:02:56]} 42. Bxh3 {[%emt 0:02:54]} Rxh5 {[%emt 0:00:10]} 43. Bg4 {[%emt 0:00:06]} Rg5 {[%emt 0:00:12]} 44. Rf2 {[%emt 0:01:10]} Qh7 {[%emt 0:01:19]} 45. b4 {[%emt 0:05:36]} R5g7 {[%emt 0:01:26]} 46. b5 {[%emt 0:03:22]} Rc7 {[%emt 0:00:18]} 47. Qe2 {[%emt 0:00:07]} b6 {[%emt 0:03:27]} 48. a4 {[%emt 0:01:04]} Ra8 {[%emt 0:03:54]} 49. Ra1 {[%emt 0:00:29]} Rc3 {[%emt 0:02:04]} 50. Bf5 {[%emt 0:06:39]} Qh6 {[%emt 0:02:54]} 51. Qf1 {[%emt 0:01:53]} Rg8 {[%emt 0:01:15]} 52. Bg4 {[%emt 0:01:25]} Rg7 {[%emt 0:03:13]} 53. Raa2 {[%emt 0:04:36]} Kg8 {[%emt 0:01:01]} 54. Rfc2 {[%emt 0:00:15]} Rgc7 {[%emt 0:01:10]} 55. Qg2 {[%emt 0:00:07]} Kf8 {[%emt 0:02:21]} 56. Be6 {[%emt 0:04:45]} Qg7 {[%emt 0:02:01]} 57. Bg4 {[%emt 0:03:46]} Qg5 {[%emt 0:02:25]} 58. Rxc3 {[%emt 0:03:20]} Rxc3 {[%emt 0:00:02]} 59. Ra1 {[%emt 0:00:12]} Qg7 {[%emt 0:01:33]} 60. Qh3 {[%emt 0:01:52]} Rc2 {[%emt 0:04:24]} 61. Bd7 {[%emt 0:01:41]} Be3 {[%emt 0:02:36]} 62. Qf5+ {[%emt 0:01:16]} Kg8 {[%emt 0:00:03]} 63. Be6+ {[%emt 0:00:19]} Kh8 {[%emt 0:00:01]} 64. Qh5+ {[%emt 0:00:23]} Qh7 {[%emt 0:01:05]} 65. Qe8+ {[%emt 0:00:32]} Kg7 {[%emt 0:00:01]} 66. Qe7+ {[%emt 0:00:28]} Kh6 {[%emt 0:00:07]} 67. Qxd6 {[%emt 0:01:46]} Qg6 {[%emt 0:01:17]} 68. Qf8+ {[%emt 0:00:08]} Kg5 {[%emt 0:00:07]} 69. Bf5 {[%emt 0:01:22]} Qh5 {[%emt 0:01:41]} 70. Bg4 {[%emt 0:04:16]} Qh7 {[%emt 0:00:21]} 71. d6 {[%emt 0:01:07]} Kh4 {[%emt 0:00:36]} 72. Qe7+ {[%emt 0:01:24]} Qxe7 {[%emt 0:00:37]} 73. dxe7 {[%emt 0:00:04]} Kg3 {[%emt 0:00:31]} 74. Bh3 {[%emt 0:00:06]} Kxh3 {[%emt 0:00:34]} 75. e8=Q {[%emt 0:00:06]} 1-0

[Event "XIX Najdorf Memorial 2019"]
[Site "Warsaw"]
[Date "2019.07.13"]
[Round "8.12"]
[White "Krysztofiak, Marcin"]
[Black "Kanarek, Marcel"]
[Result "1/2-1/2"]
[ECO "A04"]
[WhiteElo "2382"]
[BlackElo "2493"]
[Annotator "ChessBase"]
[PlyCount "65"]
[EventDate "2019.07.06"]
[EventType "swiss"]
[EventCountry "POL"]
[SourceTitle "playchess.com"]
[Source "ChessBase"]
[SourceQuality "1"]
[TimeControl "40/5400+30:1800+30"]

1. Nf3 {[%emt 0:00:00]} g6 {[%emt 0:00:00]} 2. e4 {[%emt 0:00:32]} Bg7 {[%emt 0:00:00]} 3. d4 {[%emt 0:00:12]} d6 {[%emt 0:00:00]} 4. Bc4 {[%emt 0:01:47]} Nf6 {[%emt 0:10:18]} 5. Qe2 {[%emt 0:00:49]} c6 {[%emt 0:09:24]} 6. Bb3 {[%emt 0:07:42]} e5 {[%emt 0:13:58]} 7. dxe5 {[%emt 0:29:50]} dxe5 {[%emt 0:00:10]} 8. O-O {[%emt 0:00:29]} Qe7 {[%emt 0:13:03]} 9. Bg5 {[%emt 0:09:11]} h6 {[%emt 0:03:28]} 10. Bh4 {[%emt 0:03:02]} g5 {[%emt 0:01:14]} 11. Bg3 {[%emt 0:00:05]} Nh5 {[%emt 0:02:12]} 12. Nbd2 {[%emt 0:02:37]} O-O {[%emt 0:12:36]} 13. Rfd1 {[%emt 0:02:34]} Nf4 {[%emt 0:00:27]} 14. Qe3 {[%emt 0:01:31]} Bf6 {[%emt 0:08:07]} 15. Nc4 {[%emt 0:02:50]} Na6 {[%emt 0:02:37]} 16. Nd6 {[%emt 0:02:22]} Nc7 {[%emt 0:07:22]} 17. Rd2 {[%emt 0:04:19]} Nb5 {[%emt 0:03:14]} 18. Nxc8 {[%emt 0:03:26]} Rfxc8 {[%emt 0:00:59]} 19. c3 {[%emt 0:09:56]} Rd8 {[%emt 0:01:12]} 20. Rad1 {[%emt 0:00:04]} Rxd2 21. Qxd2 {[%emt 0:01:26]} Qc7 {[%emt 0:08:00]} 22. Qd7 {[%emt 0:04:07]} Rd8 {[%emt 0:00:45]} 23. Qxc7 {[%emt 0:00:06]} Rxd1+ {[%emt 0:00:30]} 24. Bxd1 {[%emt 0:00:04]} Nxc7 {[%emt 0:00:05]} 25. Bxf4 {[%emt 0:00:32]} exf4 {[%emt 0:00:26]} 26. h3 {[%emt 0:02:47]} Kf8 {[%emt 0:00:43]} 27. Kf1 {[%emt 0:00:27]} Ke7 {[%emt 0:00:50]} 28. Ke2 {[%emt 0:01:06]} c5 {[%emt 0:00:27]} 29. a4 {[%emt 0:02:32]} b6 {[%emt 0:01:01]} 30. Kd3 {[%emt 0:02:26]} Bg7 {[%emt 0:00:36]} 31. e5 {[%emt 0:01:35]} f5 {[%emt 0:00:50]} 32. exf6+ {[%emt 0:00:16]} Kxf6 {[%emt 0:00:43]} 33. Ke4 {Ke5+} 1/2-1/2

[Event "XIX Najdorf Memorial 2019"]
[Site "Warsaw"]
[Date "2019.07.13"]
[Round "8.12"]
[White "Jaskolka, Tomasz"]
[Black "Oglaza, Oskar"]
[Result "0-1"]
[ECO "A45"]
[WhiteElo "2236"]
[BlackElo "2345"]
[Annotator "NA"]
[PlyCount "50"]
[EventDate "2019.07.06"]
[EventType "swiss"]
[EventCountry "POL"]
[SourceTitle "playchess.com"]
[Source "ChessBase"]
[SourceQuality "1"]
[TimeControl "40/5400+30:1800+30"]

1. d4 {[%emt 0:00:00]} Nf6 {[%emt 0:00:00]} 2. Bf4 {[%emt 0:00:00]} d5 {[%emt 0:00:00]} 3. e3 {[%emt 0:00:00]} c5 {[%emt 0:00:00]} 4. c3 {[%emt 0:00:12]} Nc6 {[%emt 0:00:00]} 5. Nd2 {[%emt 0:00:09]} Bf5 {[%emt 0:00:00]} 6. Ngf3 {[%emt 0:00:05]} e6 {[%emt 0:00:15]} 7. Qa4 {[%emt 0:00:05]} Qb6 {[%emt 0:09:39]} 8. Bb5 {[%emt 0:02:19]} Nd7 {[%emt 0:03:46]} 9. Ne5 {[%emt 0:06:49]} Ndxe5 {[%emt 0:01:09]} 10. Bxe5 {[%emt 0:00:06]} Be7 {[%emt 0:03:02]} 11. dxc5 {[%emt 0:20:58]} Bxc5 {[%emt 0:00:29]} 12. Bd4 {[%emt 0:00:05]} O-O {[%emt 0:02:53]} 13. Bxc5 {[%emt 0:27:17]} Qxc5 {[%emt 0:00:09]} 14. Nb3 {[%emt 0:00:26]} Qb6 {[%emt 0:00:42]} 15. Bxc6 {[%emt 0:00:26]} bxc6 {[%emt 0:00:17]} 16. Qb4 {[%emt 0:01:23]} Rfb8 {[%emt 0:02:11]} 17. Qxb6 {[%emt 0:03:07]} Rxb6 {[%emt 0:00:13]} 18. O-O-O {[%emt 0:00:10]} Rab8 {[%emt 0:08:29]} 19. Rd2 {[%emt 0:05:30]} Ra6 {[%emt 0:00:50]} 20. Nd4 {[%emt 0:07:08]} Rxa2 {[%emt 0:00:08]} 21. Nxf5 {[%emt 0:00:02]} Ra1+ {[%emt 0:00:31]} 22. Kc2 {[%emt 0:00:02]} Rxh1 {[%emt 0:00:07]} 23. Ne7+ {[%emt 0:00:02]} Kf8 {[%emt 0:00:07]} 24. Nxc6 {[%emt 0:00:03]} Rb6 {[%emt 0:01:38]} 25. Nxa7 {[%emt 0:00:26]} Ra1 {[%emt 0:00:05]} 0-1

[Event "XIX Najdorf Memorial 2019"]
[Site "Warsaw"]
[Date "2019.07.13"]
[Round "8.13"]
[White "Klekowski, Maciej"]
[Black "Goslawski, Michal"]
[Result "1-0"]
[ECO "D53"]
[WhiteElo "2482"]
[BlackElo "2091"]
[Annotator "ChessBase"]
[PlyCount "81"]
[EventDate "2019.07.06"]
[EventType "swiss"]
[EventCountry "POL"]
[SourceTitle "playchess.com"]
[Source "ChessBase"]
[SourceQuality "1"]
[TimeControl "40/5400+30:1800+30"]

1. c4 {[%emt 0:00:00]} e6 {[%emt 0:00:00]} 2. Nc3 {[%emt 0:01:56]} d5 {[%emt 0:00:00]} 3. d4 {[%emt 0:00:44]} Nf6 {[%emt 0:00:02]} 4. Bg5 {[%emt 0:02:53]} Be7 {[%emt 0:00:16]} 5. e3 {[%emt 0:00:05]} h6 {[%emt 0:01:18]} 6. Bxf6 {[%emt 0:02:00]} Bxf6 {[%emt 0:00:08]} 7. Nf3 {[%emt 0:00:03]} O-O {[%emt 0:05:07]} 8. Rc1 {[%emt 0:06:59]} dxc4 {[%emt 0:05:44]} 9. Bxc4 {[%emt 0:00:09]} a6 {[%emt 0:00:13]} 10. O-O {[%emt 0:00:21]} Nd7 {[%emt 0:02:58]} 11. Ne4 {[%emt 0:12:54]} e5 {[%emt 0:07:36]} 12. dxe5 {[%emt 0:30:13]} Nxe5 {[%emt 0:02:01]} 13. Nxe5 {[%emt 0:00:09]} Bxe5 {[%emt 0:00:20]} 14. Bxf7+ {[%emt 0:01:21]} Kh8 {[%emt 0:01:58]} 15. Bg6 {[%emt 0:03:08]} Bf5 {[%emt 0:02:19]} 16. Bxf5 {[%emt 0:00:51]} Rxf5 {[%emt 0:00:10]} 17. Qxd8+ {[%emt 0:01:58]} Rxd8 {[%emt 0:00:07]} 18. b3 {[%emt 0:00:54]} Rf7 {[%emt 0:01:52]} 19. Rfd1 {[%emt 0:02:35]} Rfd7 {[%emt 0:02:25]} 20. Rxd7 {[%emt 0:00:06]} Rxd7 {[%emt 0:00:03]} 21. f4 {[%emt 0:00:07]} Bb2 {[%emt 0:01:58]} 22. Rc2 {[%emt 0:00:05]} Ba3 {[%emt 0:00:22]} 23. Kf2 {[%emt 0:00:03]} Bb4 {[%emt 0:03:26]} 24. Ke2 {[%emt 0:03:27]} c5 {[%emt 0:01:38]} 25. Nf2 {[%emt 0:01:12]} b5 {[%emt 0:03:13]} 26. Nd3 {[%emt 0:00:17]} Ba3 {[%emt 0:00:04]} 27. Ne5 {[%emt 0:02:19]} Rc7 {[%emt 0:01:34]} 28. Rd2 {[%emt 0:07:41]} c4 {[%emt 0:05:42]} 29. bxc4 {[%emt 0:00:16]} bxc4 {[%emt 0:00:08]} 30. Rd8+ {[%emt 0:03:10]} Kh7 {[%emt 0:00:17]} 31. Kd2 {[%emt 0:00:12]} Bb2 {[%emt 0:00:59]} 32. Rd5 {[%emt 0:00:42]} Ba1 {[%emt 0:04:48]} 33. Ra5 {[%emt 0:03:16]} c3+ {[%emt 0:01:40]} 34. Kc2 {[%emt 0:00:07]} Rb7 {[%emt 0:00:23]} 35. Nd3 {[%emt 0:00:12]} Re7 {[%emt 0:00:29]} 36. Re5 {[%emt 0:00:05]} Rd7 {[%emt 0:02:22]} 37. Re4 {[%emt 0:00:44]} a5 {[%emt 0:00:32]} 38. Rd4 {[%emt 0:01:32]} Rb7 {[%emt 0:00:58]} 39. e4 {[%emt 0:00:29]} Kg8 {[%emt 0:04:40]} 40. Rd5 {[%emt 0:00:00]} a4 {[%emt 0:00:00]} 41. Ra5 {[%emt 0:01:26]} 1-0

[Event "XIX Najdorf Memorial 2019"]
[Site "Warsaw"]
[Date "2019.07.13"]
[Round "8.13"]
[White "Akesson, Ralf"]
[Black "Zebracki, Tomasz"]
[Result "1-0"]
[ECO "A05"]
[WhiteElo "2365"]
[BlackElo "2183"]
[Annotator "NA"]
[PlyCount "81"]
[EventDate "2019.07.06"]
[EventType "swiss"]
[EventCountry "POL"]
[SourceTitle "playchess.com"]
[Source "ChessBase"]
[SourceQuality "1"]
[TimeControl "40/5400+30:1800+30"]

1. Nf3 {[%emt 0:02:25]} Nf6 {[%emt 0:00:00]} 2. c4 {[%emt 0:00:09]} b6 {[%emt 0:03:10]} 3. Nc3 {[%emt 0:01:55]} Bb7 {[%emt 0:00:10]} 4. d4 {[%emt 0:01:14]} e6 {[%emt 0:00:25]} 5. a3 {[%emt 0:00:24]} Be7 {[%emt 0:03:15]} 6. d5 {[%emt 0:01:16]} O-O {[%emt 0:08:07]} 7. e4 {[%emt 0:00:55]} d6 {[%emt 0:01:05]} 8. Bd3 {[%emt 0:04:44]} c6 {[%emt 0:19:52]} 9. dxe6 {[%emt 0:07:24]} fxe6 {[%emt 0:00:22]} 10. e5 {[%emt 0:01:51]} dxe5 {[%emt 0:01:28]} 11. Nxe5 {[%emt 0:01:21]} Bd6 {[%emt 0:10:39]} 12. Bf4 {[%emt 0:12:32]} Qc7 {[%emt 0:18:33]} 13. Qe2 {[%emt 0:01:27]} Nd5 {[%emt 0:02:57]} 14. Bg3 {[%emt 0:09:47]} Nxc3 {[%emt 0:11:23]} 15. bxc3 {[%emt 0:00:39]} Bxe5 {[%emt 0:01:22]} 16. Bxe5 {[%emt 0:00:35]} Qf7 {[%emt 0:00:11]} 17. Bd6 {[%emt 0:12:06]} Rd8 {[%emt 0:01:08]} 18. c5 {[%emt 0:01:21]} bxc5 {[%emt 0:01:28]} 19. Bg3 {[%emt 0:02:17]} Nd7 {[%emt 0:01:09]} 20. Bc4 {[%emt 0:00:54]} Re8 {[%emt 0:00:43]} 21. O-O {[%emt 0:01:25]} Nb6 {[%emt 0:00:25]} 22. Rfe1 {[%emt 0:03:11]} Nd5 {[%emt 0:00:15]} 23. Be5 {[%emt 0:00:49]} Rad8 {[%emt 0:02:12]} 24. a4 {[%emt 0:04:28]} a5 {[%emt 0:00:16]} 25. Rab1 {[%emt 0:00:38]} Rd7 {[%emt 0:02:04]} 26. h3 {[%emt 0:02:56]} Rdd8 {[%emt 0:00:08]} 27. Qg4 {[%emt 0:03:51]} Rd7 {[%emt 0:03:23]} 28. Rbd1 {[%emt 0:08:35]} Qf5 {[%emt 0:01:21]} 29. Qg3 {[%emt 0:02:47]} Qf7 {[%emt 0:01:51]} 30. Qh4 {[%emt 0:01:54]} Qe7 {[%emt 0:00:50]} 31. Qg4 {[%emt 0:00:33]} Qf7 {[%emt 0:00:21]} 32. Rd3 {[%emt 0:03:07]} Qf5 {[%emt 0:02:31]} 33. Qh4 {[%emt 0:01:49]} Qf7 {[%emt 0:02:26]} 34. Rg3 {[%emt 0:01:30]} g6 {[%emt 0:00:01]} 35. Re4 {[%emt 0:01:26]} Ne7 {[%emt 0:00:45]} 36. Rf3 {[%emt 0:02:15]} Nf5 {[%emt 0:00:41]} 37. Qg5 {[%emt 0:00:31]} Qe7 {[%emt 0:00:43]} 38. Rxf5 {[%emt 0:00:30]} Ba6 {[%emt 0:00:34]} 39. Rf6 {[%emt 0:00:57]} Bxc4 {[%emt 0:00:32]} 40. Rxg6+ {[%emt 0:00:00]} hxg6 {[%emt 0:00:00]} 41. Qxg6+ {[%emt 0:01:03]} 1-0